bitfinex/quotes_BTCUSD_20220120
["timestamp","ask_amount","ask_price","bid_price","bid_amount"]
[1642670521777,0.3315468,41866.0,41865.0,0.00012033]
[1642670526373,0.10928967,41866.0,41865.0,0.36307475]
[1642670526582,0.10928967,41866.0,41865.0,0.74873675]
[1642670526772,0.00121403,41868.0,41865.0,0.74873675]
[1642670526976,0.00121403,41868.0,41866.0,0.385662]
[1642670527174,0.00121403,41868.0,41866.0,0.38576514]
[1642670527373,0.42,41871.0,41867.0,0.30008595]
[1642670527576,0.00121401,41869.0,41867.0,0.30008595]
[1642670527772,0.00121401,41869.0,41868.0,6.876e-05]
[1642670528575,0.20999489,41870.0,41866.0,0.00010314]
[1642670530023,0.34707079,41870.0,41866.0,0.00010314]
[1642670530223,0.26120889,41870.0,41866.0,0.00010314]
[1642670530622,0.21120889,41870.0,41866.0,0.00010314]
[1642670531025,0.20999489,41870.0,41866.0,0.00010314]
[1642670531222,0.21120889,41870.0,41866.0,0.00010314]
[1642670532122,0.20999489,41870.0,41866.0,0.00010314]
[1642670532324,0.21120889,41870.0,41866.0,0.00010314]
[1642670533370,0.20999489,41870.0,41866.0,0.00010314]
[1642670533575,0.21120889,41870.0,41866.0,0.00010314]
[1642670534570,0.20999489,41870.0,41866.0,0.00010314]
[1642670534772,0.21120889,41870.0,41866.0,0.00010314]
[1642670535771,0.20999489,41870.0,41866.0,0.00010314]
[1642670535969,0.21120889,41870.0,41866.0,0.00010314]
[1642670536371,0.38068589,41870.0,41866.0,0.00010314]
[1642670536977,0.20999489,41870.0,41866.0,0.00010314]
[1642670537217,0.21120889,41870.0,41866.0,0.00010314]
[1642670537415,0.21120889,41870.0,41862.0,0.36448848]
[1642670538118,0.20999489,41870.0,41862.0,0.36448848]
[1642670538317,2.12903138,41864.0,41860.0,0.51444849]
[1642670538717,2.12903138,41864.0,41861.0,8.595e-05]
[1642670540218,0.21542026,41863.0,41861.0,8.595e-05]
[1642670542075,0.10778569,41862.0,41861.0,8.595e-05]
[1642670546631,0.10778569,41862.0,41860.0,0.00010314]
[1642670546830,0.10778569,41862.0,41859.0,0.00012033]
[1642670547030,0.10778569,41862.0,41858.0,0.00106579]
[1642670547231,0.10778569,41862.0,41859.0,0.00012033]
[1642670550674,0.10778569,41862.0,41860.0,0.59590993]
[1642670556069,0.21663435,41863.0,41860.0,0.69590993]
[1642670556273,0.21542026,41863.0,41860.0,0.69590993]
[1642670556468,0.21663435,41863.0,41860.0,0.69590993]
[1642670557272,0.21542026,41863.0,41862.0,0.3]
[1642670557472,0.21542026,41863.0,41862.0,0.59710478]
[1642670557672,0.21542026,41863.0,41862.0,0.59217354]
[1642670557872,0.32291944,41863.0,41862.0,0.59217354]
[1642670558078,0.32291944,41863.0,41862.0,0.69217354]
[1642670558472,0.32291944,41863.0,41862.0,0.39717354]
[1642670559074,0.32291944,41863.0,41862.0,0.29717354]
[1642670559473,0.32291944,41863.0,41862.0,0.01200876]
[1642670559738,0.32291944,41863.0,41862.0,0.01220593]
[1642670560535,0.32291944,41863.0,41862.0,0.00026593]
[1642670561136,0.10749918,41863.0,41862.0,0.00026593]
[1642670566296,0.28010896,41863.0,41862.0,0.00026593]
[1642670568727,0.33010896,41863.0,41862.0,0.00026593]
[1642670570430,0.22260978,41863.0,41862.0,0.00026593]
[1642670570635,0.32703886,41863.0,41862.0,0.00026593]
[1642670570875,0.27703886,41863.0,41862.0,0.00026593]
[1642670572777,0.17260978,41863.0,41862.0,0.00026593]
[1642670575131,0.27711356,41863.0,41862.0,0.00026593]
[1642670575842,0.27711356,41863.0,41860.0,0.14468427]
[1642670575843,0.454991,41862.0,41860.0,0.14468427]
[1642670576238,0.10450378,41861.0,41860.0,0.14468427]
[1642670576436,0.54513256,41861.0,41860.0,0.14468427]
[1642670576734,0.84420766,41861.0,41860.0,0.04478427]
[1642670576932,0.84420766,41861.0,41856.0,0.16724]
[1642670576933,0.00123924,41858.0,41856.0,0.16724]
[1642670577235,0.112648,41857.0,41856.0,0.16724]
[1642670577532,0.47943034,41857.0,41856.0,0.16734314]
[1642670577733,0.58393412,41857.0,41856.0,0.16734314]
[1642670578780,0.86603574,41857.0,41856.0,0.16734314]
[1642670578973,0.96603574,41857.0,41856.0,0.16734314]
[1642670579472,1.09727798,41857.0,41856.0,0.16734314]
[1642670579672,0.96603574,41857.0,41856.0,0.16734314]
[1642670579874,1.09807206,41857.0,41856.0,0.16734314]
[1642670580274,0.00129878,41855.0,41854.0,0.00116457]
[1642670580476,0.65628978,41855.0,41854.0,0.00116457]
[1642670580673,0.7,41854.0,41848.0,0.0011]
[1642670580875,0.00124242,41852.0,41848.0,0.0011]
[1642670581073,0.00124242,41852.0,41851.0,8.595e-05]
[1642670581074,0.12077942,41852.0,41851.0,8.595e-05]
[1642670581272,0.55972685,41852.0,41851.0,8.595e-05]
[1642670581478,0.71423063,41852.0,41851.0,8.595e-05]
[1642670581676,0.89552181,41852.0,41851.0,8.595e-05]
[1642670582427,0.654991,41851.0,41849.0,0.00118128]
[1642670582627,0.5479,41850.0,41849.0,0.00012509]
[1642670582829,0.10414361,41850.0,41849.0,0.00118127]
[1642670583026,0.55615513,41850.0,41849.0,0.00118127]
[1642670583326,0.454991,41849.0,41843.0,0.00422533]
[1642670583528,0.35814252,41845.0,41843.0,0.00422533]
[1642670583729,0.35814252,41845.0,41844.0,0.00505351]
[1642670583929,0.54402517,41845.0,41844.0,0.00505351]
[1642670584732,0.66189242,41845.0,41844.0,0.00505351]
[1642670586170,0.11911244,41845.0,41844.0,0.00505351]
[1642670586376,0.11786725,41845.0,41844.0,0.00505351]
[1642670586572,0.291952,41849.0,41844.0,0.00505351]
[1642670586573,0.11786725,41848.0,41844.0,0.00505351]
[1642670586877,0.12285825,41847.0,41845.0,0.00010314]
[1642670587071,0.24695448,41846.0,41845.0,0.00010314]
[1642670587272,0.65598256,41846.0,41845.0,0.00010314]
[1642670587472,0.60120156,41846.0,41845.0,0.00010314]
[1642670588075,0.41401908,41846.0,41845.0,0.00010314]
[1642670588875,0.12285825,41846.0,41845.0,0.00010314]
[1642670589273,0.29042315,41846.0,41845.0,0.00010314]
[1642670589736,0.29121727,41846.0,41845.0,0.00010314]
[1642670590837,0.11866137,41846.0,41845.0,0.00010314]
[1642670591436,0.00079412,41846.0,41845.0,0.00010314]
[1642670592640,0.00079412,41846.0,41844.0,0.00473383]
[1642670593476,0.00079412,41846.0,41844.0,0.00623383]
[1642670594275,0.12224766,41846.0,41844.0,0.00623383]
[1642670594783,0.22423335,41845.0,41844.0,0.00623383]
[1642670595776,0.43329864,41849.0,41844.0,0.00623383]
[1642670595976,0.0979,41849.0,41844.0,0.00623383]
[1642670596175,0.12088425,41848.0,41844.0,0.00623383]
[1642670596377,0.16878425,41848.0,41844.0,0.00623383]
[1642670596778,0.12088425,41847.0,41844.0,0.00623383]
[1642670596982,0.17088425,41847.0,41844.0,0.00623383]
[1642670597227,0.36828931,41846.0,41844.0,0.00728039]
[1642670597431,0.48917356,41846.0,41844.0,0.00728039]
[1642670597630,0.37088425,41845.0,41844.0,0.00728039]
[1642670597827,0.12088425,41845.0,41844.0,0.00728039]
[1642670598226,0.12088425,41845.0,41844.0,0.00623383]
[1642670598428,0.36119757,41845.0,41844.0,0.00623383]
[1642670598927,0.41119757,41845.0,41844.0,0.00623383]
[1642670599730,0.46534044,41845.0,41844.0,0.00623383]
[1642670600530,0.52511844,41845.0,41844.0,0.00623383]
[1642670600731,0.83650746,41845.0,41844.0,0.00623383]
[1642670600981,1.03389147,41845.0,41844.0,0.00623383]
[1642670601181,1.13389147,41845.0,41844.0,0.00623383]
[1642670601482,0.67386657,41845.0,41844.0,0.0066793]
[1642670602688,0.62386657,41845.0,41844.0,0.0066793]
[1642670602886,1.05508968,41845.0,41844.0,0.0066793]
[1642670603084,0.77386657,41845.0,41844.0,0.0066793]
[1642670603287,0.71408857,41845.0,41844.0,0.0066793]
[1642670603486,0.32377525,41845.0,41844.0,0.0066793]
[1642670603691,0.22088425,41845.0,41844.0,0.0066793]
[1642670603886,0.1,41845.0,41844.0,0.0066793]
[1642670604086,0.3119,41850.0,41844.0,0.0664383]
[1642670604285,0.14654625,41854.0,41844.0,0.0664383]
[1642670604486,0.12049766,41849.0,41845.0,0.28974717]
[1642670604730,0.19191052,41849.0,41845.0,0.28974717]
[1642670604928,0.19191052,41849.0,41845.0,0.58344011]
[1642670604929,0.19184176,41849.0,41845.0,0.58344011]
[1642670605335,0.19184176,41849.0,41844.0,0.0066793]
[1642670605529,0.19184176,41849.0,41845.0,0.00104652]
[1642670605930,0.12042439,41848.0,41845.0,0.00104652]
[1642670606131,0.19184176,41849.0,41845.0,0.00104652]
[1642670606330,0.19184176,41849.0,41847.0,0.00044409]
[1642670606730,0.24184176,41849.0,41847.0,0.00044409]
[1642670606933,0.19184176,41849.0,41847.0,0.00044409]
[1642670607532,0.05,41853.0,41847.0,0.00044409]
[1642670607732,0.004991,41852.0,41847.0,0.00044409]
[1642670607937,0.12561641,41852.0,41847.0,0.00044409]
[1642670608231,0.00010314,41851.0,41847.0,0.00044409]
[1642670608504,8.595e-05,41850.0,41847.0,0.00044409]
[1642670608905,0.17647447,41850.0,41847.0,0.00044409]
[1642670609103,0.22647447,41850.0,41847.0,0.00044409]
[1642670609504,0.05008595,41850.0,41847.0,0.00044409]
[1642670609704,0.05008595,41850.0,41847.0,0.33082124]
[1642670609904,8.595e-05,41850.0,41848.0,0.25503577]
[1642670610107,8.595e-05,41850.0,41848.0,0.33901634]
[1642670610306,8.595e-05,41850.0,41847.0,0.33082124]
[1642670610512,0.55008595,41850.0,41847.0,0.33082124]
[1642670610907,0.50008595,41850.0,41847.0,0.33082124]
[1642670611308,0.50008595,41850.0,41849.0,0.00044317]
[1642670611708,0.62059119,41850.0,41849.0,0.00044317]
[1642670612128,0.62558219,41850.0,41849.0,0.00044317]
[1642670612527,0.67558219,41850.0,41849.0,0.00044317]
[1642670614730,0.72558219,41850.0,41849.0,0.00044317]
[1642670615332,0.67558219,41850.0,41849.0,0.00044317]
[1642670615534,0.62059119,41850.0,41849.0,0.00044317]
[1642670615735,0.50008595,41850.0,41849.0,0.00044317]
[1642670616176,0.50008595,41850.0,41848.0,0.28077044]
[1642670616971,0.50008595,41850.0,41848.0,0.00044317]
[1642670618073,0.55008595,41850.0,41848.0,0.00044317]
[1642670618276,0.12023228,41849.0,41848.0,0.00044317]
[1642670618874,0.55008595,41850.0,41848.0,0.00044317]
[1642670619073,0.12023239,41849.0,41848.0,0.00044317]
[1642670619475,0.05,41849.0,41848.0,0.00044317]
[1642670619733,0.17023624,41849.0,41848.0,0.00044317]
[1642670619934,0.55008595,41850.0,41848.0,0.00044317]
[1642670620333,0.50008595,41850.0,41848.0,0.00044317]
[1642670621334,0.50008595,41850.0,41847.0,0.00104644]
[1642670622136,0.50008595,41850.0,41846.0,0.11950755]
[1642670622334,0.50008595,41850.0,41846.0,0.12055401]
[1642670623484,0.50008595,41850.0,41846.0,0.059755]
[1642670623677,0.50008595,41850.0,41846.0,0.06080148]
[1642670624279,0.50008595,41850.0,41846.0,0.00104648]
[1642670624679,0.50008595,41850.0,41845.0,0.25335244]
[1642670624879,0.50008595,41850.0,41846.0,0.00104648]
[1642670625778,0.50008595,41850.0,41845.0,0.00030868]
[1642670625983,0.12026441,41849.0,41845.0,0.00030868]
[1642670626179,0.12026441,41849.0,41846.0,0.00104648]
[1642670627432,0.12026441,41849.0,41845.0,0.0010465]
[1642670628428,0.12026441,41849.0,41845.0,0.00209302]
[1642670628633,0.12026441,41849.0,41845.0,0.00104652]
[1642670629030,0.50008595,41850.0,41849.0,0.48154]
[1642670631281,0.50008595,41850.0,41849.0,0.48184838]
[1642670631681,0.50008595,41850.0,41849.0,0.48313656]
[1642670631879,0.50008595,41850.0,41849.0,1.01669856]
[1642670632280,0.50008595,41850.0,41849.0,0.91669856]
[1642670632581,0.50008595,41850.0,41849.0,1.01669856]
[1642670633980,0.50008595,41850.0,41849.0,0.96879856]
[1642670634628,0.50008595,41850.0,41849.0,0.86879856]
[1642670634830,0.50008595,41850.0,41849.0,0.91879856]
[1642670635634,0.50008595,41850.0,41849.0,0.86751038]
[1642670636234,0.80866087,41850.0,41849.0,0.86751038]
[1642670636632,0.50008595,41850.0,41849.0,0.86751038]
[1642670637233,0.50008595,41850.0,41849.0,0.48184838]
[1642670638682,0.50008595,41850.0,41849.0,0.73839621]
[1642670638883,0.50008595,41850.0,41849.0,1.12405821]
[1642670639880,0.50008595,41850.0,41849.0,1.42863862]
[1642670640080,0.50008595,41850.0,41849.0,1.12405821]
[1642670642429,0.50008595,41850.0,41849.0,1.34199847]
[1642670642629,0.50008595,41850.0,41849.0,1.08545064]
[1642670644331,0.50008595,41850.0,41849.0,0.86751038]
[1642670644539,0.50008595,41850.0,41849.0,0.48184838]
[1642670644540,0.6609609,41850.0,41849.0,0.48184838]
[1642670644836,0.7138519,41850.0,41849.0,0.48184838]
[1642670645432,0.99286751,41850.0,41849.0,0.48184838]
[1642670645634,1.23689606,41850.0,41849.0,0.48184838]
[1642670645887,1.43690774,41850.0,41849.0,0.48184838]
[1642670646290,1.37713774,41850.0,41849.0,0.48184838]
[1642670649289,1.43690574,41850.0,41849.0,0.48184838]
[1642670649489,1.47713774,41850.0,41849.0,0.48184838]
[1642670649736,1.47713774,41850.0,41849.0,0.47946629]
[1642670652133,1.19812213,41850.0,41849.0,0.47946629]
[1642670653132,1.56201137,41850.0,41849.0,0.47946629]
[1642670653379,1.19812213,41850.0,41849.0,0.47946629]
[1642670654281,1.54630583,41850.0,41849.0,0.47946629]
[1642670654888,1.60607283,41850.0,41849.0,0.47946629]
[1642670656082,1.19812213,41850.0,41849.0,0.47946629]
[1642670657331,1.09812213,41850.0,41849.0,0.47946629]
[1642670657931,0.85409358,41850.0,41849.0,0.47946629]
[1642670658338,0.7138519,41850.0,41849.0,0.47946629]
[1642670658732,0.7088609,41850.0,41849.0,0.47946629]
[1642670658934,0.6109609,41850.0,41849.0,0.79462289]
[1642670659333,0.6109609,41850.0,41849.0,1.18028489]
[1642670659738,0.6109609,41850.0,41849.0,1.37560663]
[1642670659936,0.50008595,41850.0,41849.0,1.37560663]
[1642670660335,0.00104126,41856.0,41850.0,3.17965905]
[1642670660537,0.14024168,41858.0,41851.0,0.385662]
[1642670660735,0.3109,41859.0,41856.0,0.28381762]
[1642670660989,0.14912469,41861.0,41856.0,0.28381762]
[1642670661191,0.30836677,41857.0,41856.0,0.28381762]
[1642670661589,0.30836677,41857.0,41856.0,0.53196368]
[1642670663290,0.30836677,41857.0,41856.0,0.28381762]
[1642670663492,0.30836677,41857.0,41856.0,0.59197309]
[1642670663692,0.30836677,41857.0,41856.0,0.34381762]
[1642670663891,0.30836677,41857.0,41856.0,0.59089707]
[1642670664837,0.30836677,41857.0,41856.0,0.97655907]
[1642670665238,0.30836677,41857.0,41856.0,0.72947962]
[1642670665442,0.30836677,41857.0,41856.0,0.98529369]
[1642670666238,0.30836677,41857.0,41856.0,0.98559992]
[1642670666440,0.30836677,41857.0,41856.0,1.16783113]
[1642670666640,0.30836677,41857.0,41856.0,1.50339778]
[1642670666840,0.00103888,41859.0,41857.0,0.909736]
[1642670667042,0.00103888,41859.0,41858.0,1.5626045]
[1642670667239,0.00103888,41859.0,41858.0,0.71384711]
[1642670667946,0.0010389,41861.0,41859.0,0.17918495]
[1642670668385,0.00110766,41861.0,41860.0,1.135662]
[1642670668591,0.00110766,41861.0,41860.0,1.53361342]
[1642670668790,0.14024168,41872.0,41866.0,0.00124226]
[1642670668995,0.14024168,41872.0,41871.0,0.00125528]
[1642670669189,0.14024168,41877.0,41871.0,0.00125528]
[1642670669386,0.14024168,41877.0,41872.0,0.34489896]
[1642670669589,0.14024168,41877.0,41872.0,0.7469706]
[1642670669590,0.00020628,41873.0,41872.0,0.7469706]
[1642670669986,0.00020628,41873.0,41872.0,1.1326326]
[1642670670187,0.00020628,41873.0,41872.0,1.48074069]
[1642670670789,0.00020628,41873.0,41872.0,1.66170384]
[1642670670988,0.00020628,41873.0,41872.0,1.2596322]
[1642670671189,0.00020628,41873.0,41872.0,0.91152411]
[1642670671488,0.00020628,41873.0,41872.0,0.91182544]
[1642670672333,0.00020628,41873.0,41872.0,1.2559812]
[1642670674434,0.00020628,41873.0,41872.0,1.07501805]
[1642670674636,0.00020628,41873.0,41872.0,0.73086229]
[1642670675434,0.00020628,41873.0,41872.0,0.94333835]
[1642670675640,0.00020628,41873.0,41872.0,1.2955596]
[1642670675883,0.10620918,41873.0,41872.0,1.2955596]
[1642670676083,0.00020628,41873.0,41872.0,1.2955596]
[1642670676284,0.10620918,41873.0,41872.0,1.2955596]
[1642670676984,0.10620918,41873.0,41872.0,0.94333835]
[1642670677584,0.10620918,41873.0,41872.0,0.73086229]
[1642670679185,0.10620918,41873.0,41872.0,0.99366871]
[1642670679832,0.10120918,41873.0,41872.0,0.99366871]
[1642670680831,0.10120918,41873.0,41872.0,1.20127776]
[1642670681831,0.10120918,41873.0,41872.0,0.93847134]
[1642670682029,0.10120918,41873.0,41872.0,0.55280934]
[1642670682630,0.10120918,41873.0,41872.0,0.34520029]
[1642670684488,0.10120918,41873.0,41872.0,0.60618372]
[1642670684886,0.10120918,41873.0,41872.0,0.60002055]
[1642670685085,0.10120918,41873.0,41872.0,0.34520029]
[1642670685686,0.10120918,41873.0,41872.0,0.59933925]
[1642670685885,0.10120918,41873.0,41872.0,0.34520029]
[1642670686286,0.10120918,41873.0,41872.0,0.59937056]
[1642670686687,0.10120918,41873.0,41872.0,0.98503256]
[1642670687232,0.05,41874.0,41872.0,0.98503256]
[1642670687439,0.00100368,41875.0,41873.0,0.64032673]
[1642670687649,0.00100368,41875.0,41873.0,0.25466473]
[1642670688238,0.1,41879.0,41873.0,0.25466473]
[1642670688434,0.00100367,41876.0,41873.0,0.25466473]
[1642670689436,0.05008595,41878.0,41873.0,0.25466473]
[1642670689636,0.00100379,41877.0,41873.0,0.25466473]
[1642670689835,0.00107255,41877.0,41873.0,0.25466473]
[1642670690636,6.876e-05,41877.0,41873.0,0.25466473]
[1642670690883,0.00107288,41877.0,41873.0,0.25466473]
[1642670691288,0.00107288,41877.0,41875.0,0.00022531]
[1642670691885,6.876e-05,41877.0,41875.0,0.00022531]
[1642670692089,6.876e-05,41877.0,41872.0,0.34489896]
[1642670692090,6.876e-05,41877.0,41872.0,0.099789]
[1642670692389,6.876e-05,41877.0,41876.0,0.00128895]
[1642670693290,0.1,41883.0,41877.0,0.85]
[1642670693488,0.13495933,41887.0,41885.0,0.0012074]
[1642670693688,0.2816,41889.0,41885.0,0.0012074]
[1642670693894,0.18265933,41895.0,41885.0,0.0012074]
[1642670694086,0.00018909,41888.0,41885.0,0.0012074]
[1642670694287,0.00018909,41888.0,41887.0,0.29135195]
[1642670694486,0.1074,41895.0,41887.0,0.52762017]
[1642670694741,0.1024,41895.0,41888.0,0.25871527]
[1642670694942,0.00528324,41894.0,41888.0,0.25871527]
[1642670695143,0.00029224,41894.0,41888.0,0.25871527]
[1642670695342,0.10561046,41893.0,41888.0,0.25871527]
[1642670695542,0.00027505,41893.0,41888.0,0.25871527]
[1642670695741,0.10559327,41892.0,41888.0,0.25871527]
[1642670695940,0.10559327,41892.0,41888.0,0.58270003]
[1642670696141,0.00024067,41891.0,41888.0,0.58270003]
[1642670696547,0.00022347,41890.0,41888.0,0.58270003]
[1642670696743,0.0477,41895.0,41889.0,0.71049719]
[1642670696744,0.00064807,41892.0,41889.0,0.71049719]
[1642670696944,0.00064807,41892.0,41891.0,0.27731025]
[1642670697143,0.00064807,41892.0,41891.0,0.57979792]
[1642670697743,6.877e-05,41894.0,41891.0,0.94122904]
[1642670697945,0.00128229,41894.0,41891.0,0.94122904]
[1642670698488,0.00128229,41894.0,41892.0,0.385662]
[1642670698686,0.00128229,41894.0,41893.0,0.29742135]
[1642670698888,0.00128229,41894.0,41893.0,0.68308335]
[1642670699093,6.877e-05,41894.0,41893.0,0.78308335]
[1642670700089,6.877e-05,41894.0,41893.0,1.21780426]
[1642670700289,6.877e-05,41894.0,41893.0,0.79502335]
[1642670700689,6.877e-05,41894.0,41893.0,0.87098335]
[1642670700888,6.877e-05,41894.0,41893.0,0.89770143]
[1642670701091,0.00121349,41896.0,41894.0,0.05967348]
[1642670701395,0.42,41900.0,41898.0,0.385662]
[1642670701596,0.42,41900.0,41899.0,1.05474743]
[1642670701791,0.42,41900.0,41899.0,1.43918921]
[1642670701990,0.42,41900.0,41899.0,1.41099921]
[1642670702235,0.00437522,41905.0,41899.0,1.41099921]
[1642670702535,0.0001719,41904.0,41903.0,0.20256328]
[1642670702935,0.00018909,41905.0,41903.0,0.20256328]
[1642670703335,0.00024066,41908.0,41903.0,0.20256328]
[1642670703536,0.00024066,41908.0,41906.0,0.27782455]
[1642670703737,0.42,41911.0,41906.0,0.27782455]
[1642670703738,0.00022347,41907.0,41906.0,0.27782455]
[1642670704037,0.34274731,41907.0,41899.0,0.35430191]
[1642670704241,0.39274731,41907.0,41899.0,0.72915712]
[1642670704436,0.05020628,41906.0,41899.0,0.66197541]
[1642670704638,0.05020628,41906.0,41903.0,0.24]
[1642670704639,0.00020628,41906.0,41903.0,0.24]
[1642670704838,0.00018909,41905.0,41904.0,0.26240788]
[1642670705037,0.00018909,41905.0,41904.0,0.50815901]
[1642670705238,0.00018909,41905.0,41904.0,0.89382101]
[1642670705736,0.00018909,41905.0,41904.0,1.11978923]
[1642670707201,0.00018909,41905.0,41904.0,1.21978923]
[1642670707398,0.00018909,41905.0,41904.0,1.22106644]
[1642670707798,0.00018909,41905.0,41904.0,1.12106644]
[1642670708602,0.00018909,41905.0,41904.0,0.73412723]
[1642670709001,0.00018909,41905.0,41904.0,0.50815901]
[1642670709202,0.00018909,41905.0,41904.0,0.51305784]
[1642670709407,0.00018909,41905.0,41904.0,0.50543293]
[1642670709838,0.00018909,41905.0,41904.0,0.89109493]
[1642670710437,0.38136714,41909.0,41905.0,0.385662]
[1642670710438,0.05628176,41909.0,41905.0,0.385662]
[1642670710637,0.02,41909.0,41904.0,0.50543293]
[1642670711438,0.36881914,41908.0,41904.0,0.50543293]
[1642670711638,0.36881914,41908.0,41903.0,0.24]
[1642670712044,0.41881914,41908.0,41903.0,0.24]
[1642670712339,2.0899614,41906.0,41903.0,0.24]
[1642670712939,0.24411769,41905.0,41903.0,0.24]
[1642670713142,0.354991,41904.0,41903.0,0.24]
[1642670713386,0.404991,41904.0,41903.0,0.24]
[1642670714387,0.054991,41904.0,41903.0,0.24]
[1642670714593,0.004991,41904.0,41903.0,0.24]
[1642670715292,0.15341303,41904.0,41903.0,0.24]
[1642670715489,1.00341303,41904.0,41903.0,0.24]
[1642670715690,1.10341303,41904.0,41903.0,0.24]
[1642670715889,1.20341303,41904.0,41903.0,0.24]
[1642670716386,1.20341303,41904.0,41898.0,0.00081779]
[1642670716387,0.85,41903.0,41898.0,0.00081779]
[1642670716589,0.112591,41902.0,41898.0,0.00081779]
[1642670716786,0.21311303,41902.0,41899.0,0.00010314]
[1642670716987,0.15052203,41901.0,41899.0,0.00010314]
[1642670717237,0.902891,41900.0,41899.0,0.00010314]
[1642670717431,0.902891,41900.0,41898.0,0.00081783]
[1642670717432,1.05341303,41900.0,41898.0,0.00081783]
[1642670717830,0.202891,41900.0,41898.0,0.00081783]
[1642670718033,0.609696,41899.0,41898.0,0.00081783]
[1642670718232,0.609696,41899.0,41892.0,0.00022347]
[1642670718233,0.22788777,41897.0,41892.0,0.00022347]
[1642670718433,0.0479,41896.0,41890.0,0.32408139]
[1642670718833,0.0479,41896.0,41891.0,0.38590266]
[1642670719233,0.0479,41896.0,41892.0,0.00022347]
[1642670719433,0.0479,41896.0,41893.0,0.37326744]
[1642670720234,0.0479,41896.0,41895.0,0.22180811]
[1642670720437,0.1,41898.0,41895.0,0.49710742]
[1642670720636,0.6097,41905.0,41897.0,0.27736332]
[1642670720887,0.004991,41904.0,41897.0,0.27736332]
[1642670721184,0.09884209,41904.0,41898.0,0.00012033]
[1642670721584,0.19884209,41904.0,41898.0,0.00012033]
[1642670721985,0.059688,41902.0,41898.0,0.00094818]
[1642670722390,0.11938,41902.0,41899.0,0.00010314]
[1642670722585,0.26938,41902.0,41899.0,0.00010314]
[1642670723385,0.38940104,41901.0,41898.0,0.0008248]
[1642670723586,0.09871013,41901.0,41899.0,0.00010314]
[1642670723986,0.16938,41902.0,41899.0,0.00010314]
[1642670724389,0.09872591,41901.0,41899.0,0.00010314]
[1642670724635,0.09872591,41901.0,41898.0,0.00082481]
[1642670724837,0.09872591,41901.0,41899.0,0.00010314]
[1642670725838,0.09872591,41901.0,41898.0,0.00082481]
[1642670726144,0.85,41899.0,41884.0,0.00126348]
[1642670726350,0.85,41899.0,41875.0,0.003301]
[1642670726351,0.02239032,41886.0,41875.0,0.003301]
[1642670726543,0.02239032,41886.0,41864.0,0.01627]
[1642670726544,0.00124707,41876.0,41864.0,0.01627]
[1642670726844,0.00124707,41876.0,41861.0,0.0022]
[1642670727043,0.00124707,41876.0,41874.0,0.22677136]
[1642670727243,0.0479,41875.0,41872.0,0.2497868]
[1642670727645,0.107628,41875.0,41872.0,0.2497868]
[1642670727842,0.157628,41875.0,41872.0,0.2497868]
[1642670728039,0.157628,41875.0,41862.0,0.0032]
[1642670728240,0.5,41874.0,41862.0,0.0032]
[1642670728490,0.0479,41873.0,41871.0,0.23422237]
[1642670728789,0.0479,41873.0,41872.0,0.00022347]
[1642670728989,0.0479,41873.0,41872.0,0.30501954]
[1642670729198,0.159718,41878.0,41874.0,0.65]
[1642670729392,0.159718,41878.0,41875.0,0.11450584]
[1642670729393,0.1,41878.0,41875.0,0.11450584]
[1642670729590,0.0479,41887.0,41876.0,0.385423]
[1642670729790,0.0479,41887.0,41877.0,0.26691505]
[1642670729989,0.29747202,41890.0,41878.0,0.01194]
[1642670730199,0.48237168,41890.0,41884.0,0.60133426]
[1642670730491,6.876e-05,41889.0,41884.0,0.60133426]
[1642670730891,6.876e-05,41889.0,41885.0,0.30023032]
[1642670731891,6.876e-05,41889.0,41882.0,0.26342671]
[1642670731892,0.05006876,41889.0,41882.0,0.26342671]
[1642670732340,0.05006876,41889.0,41883.0,0.28070907]
[1642670732940,0.0006495,41888.0,41883.0,0.28070907]
[1642670733339,0.0006495,41888.0,41887.0,0.3059011]
[1642670733541,0.0006495,41888.0,41883.0,0.28070907]
[1642670733740,6.876e-05,41889.0,41883.0,0.28070907]
[1642670734142,2.12093744,41886.0,41883.0,0.28070907]
[1642670734341,2.12093744,41886.0,41882.0,0.26342671]
[1642670735143,0.00121378,41886.0,41885.0,0.00129679]
[1642670735348,0.00121378,41886.0,41885.0,0.39865979]
[1642670735542,0.00121378,41886.0,41885.0,0.38671979]
[1642670736295,0.26541447,41889.0,41885.0,0.38671979]
[1642670736493,0.26541447,41889.0,41882.0,0.26342671]
[1642670736494,0.00121376,41888.0,41883.0,0.36912148]
[1642670736696,0.00121376,41888.0,41884.0,0.385423]
[1642670737293,0.00121376,41888.0,41885.0,0.27129527]
[1642670737493,0.05976976,41889.0,41885.0,0.27129527]
[1642670737696,0.00121375,41888.0,41885.0,0.27129527]
[1642670737900,0.04911375,41888.0,41883.0,0.36912148]
[1642670738094,0.04911375,41888.0,41884.0,0.625423]
[1642670738694,0.0479,41888.0,41884.0,0.625423]
[1642670738894,0.04911375,41888.0,41884.0,0.625423]
[1642670739644,0.04911375,41888.0,41885.0,0.2524994]
[1642670739839,0.0479,41888.0,41886.0,0.385423]
[1642670740040,0.04911375,41888.0,41886.0,0.385423]
[1642670740447,0.00121375,41888.0,41886.0,0.385423]
[1642670741044,6.876e-05,41889.0,41886.0,0.385423]
[1642670741245,0.0012825,41889.0,41886.0,0.385423]
[1642670741446,0.0012825,41889.0,41885.0,0.2524994]
[1642670741645,0.0609835,41889.0,41884.0,0.24]
[1642670742247,0.0479,41888.0,41884.0,0.24]
[1642670743689,0.04911375,41888.0,41884.0,0.24]
[1642670744284,0.09911375,41888.0,41884.0,0.24]
[1642670744688,0.0979,41888.0,41884.0,0.24]
[1642670744886,0.09911375,41888.0,41884.0,0.24]
[1642670745387,0.1064617,41887.0,41884.0,0.24]
[1642670745697,0.09911375,41888.0,41884.0,0.24]
[1642670745885,0.0979,41888.0,41884.0,0.24]
[1642670746086,0.09911376,41888.0,41884.0,0.24]
[1642670746487,0.10596111,41887.0,41884.0,0.24]
[1642670747739,0.10596111,41887.0,41884.0,0.235]
[1642670747740,0.15596111,41887.0,41884.0,0.235]
[1642670747939,0.21566911,41887.0,41884.0,0.235]
[1642670748343,0.109708,41887.0,41884.0,0.235]
[1642670748541,0.16569314,41886.0,41884.0,0.235]
[1642670748941,0.059706,41886.0,41884.0,0.235]
[1642670749841,0.10599145,41885.0,41884.0,0.235]
[1642670750041,0.15599145,41885.0,41884.0,0.235]
[1642670750649,0.10476791,41885.0,41884.0,0.23620771]
[1642670751094,0.06092177,41887.0,41884.0,0.62163071]
[1642670751295,0.06092177,41887.0,41884.0,0.235]
[1642670751896,0.059708,41887.0,41884.0,0.235]
[1642670756343,0.00121376,41888.0,41884.0,0.235]
[1642670756537,0.00121376,41888.0,41885.0,0.63783502]
[1642670756739,6.876e-05,41889.0,41885.0,0.63783502]
[1642670756937,0.00121376,41888.0,41884.0,0.235]
[1642670757537,0.00121376,41888.0,41887.0,0.28509779]
[1642670757937,6.876e-05,41889.0,41887.0,0.28509779]